[Event "*** Titled Tuesday Blitz"]
[Site "Chess.com"]
[Date "2020.10.27"]
[Round "4"]
[White "WuinaterJr"]
[Black "Samantha_Ross"]
[Result "1-0"]
[WhiteElo "2516"]
[BlackElo "2320"]
[TimeControl "180+1"]
[EndTime "10:38:59 PDT"]
[Termination "WuinaterJr won on time"]

1. d4 {[%clk 0:03:00.9]} 1... d6 {[%clk 0:02:59.1]} 2. Nf3 {[%clk 0:02:59.6]}
2... Nf6 {[%clk 0:02:59.3]} 3. g3 {[%clk 0:02:59.9]} 3... c6 {[%clk 0:02:58.8]}
4. Bg2 {[%clk 0:03:00.3]} 4... Nbd7 {[%clk 0:02:59.5]} 5. O-O {[%clk 0:03:00.9]}
5... e5 {[%clk 0:02:59.2]} 6. c4 {[%clk 0:03:00.5]} 6... Qc7 {[%clk 0:02:59.4]}
7. Nc3 {[%clk 0:03:00.8]} 7... Be7 {[%clk 0:02:59.4]} 8. Qc2 {[%clk 0:02:46.8]}
8... O-O {[%clk 0:02:57.7]} 9. b3 {[%clk 0:02:45.9]} 9... Re8 {[%clk 0:02:54.3]}
10. Bb2 {[%clk 0:02:45.2]} 10... a5 {[%clk 0:02:50]} 11. Rac1 {[%clk 0:02:42.1]}
11... Bf8 {[%clk 0:02:50.2]} 12. Rfd1 {[%clk 0:02:36.7]} 12... g6 {[%clk
0:02:47.7]} 13. d5 {[%clk 0:02:21.2]} 13... Nc5 {[%clk 0:02:32.3]} 14. a3 {[%clk
0:02:15.8]} 14... Bf5 {[%clk 0:02:29.1]} 15. e4 {[%clk 0:02:10.9]} 15... Ncxe4
{[%clk 0:02:28.5]} 16. Nxe4 {[%clk 0:02:10.6]} 16... Bxe4 {[%clk 0:02:29.1]} 17.
Qe2 {[%clk 0:02:09.5]} 17... Qb6 {[%clk 0:02:21.5]} 18. dxc6 {[%clk 0:01:43.6]}
18... bxc6 {[%clk 0:02:20.1]} 19. c5 {[%clk 0:01:37.1]} 19... dxc5 {[%clk
0:02:05]} 20. Bxe5 {[%clk 0:01:27.5]} 20... Bxf3 {[%clk 0:01:42]} 21. Qxf3
{[%clk 0:01:27.4]} 21... Rxe5 {[%clk 0:01:40.8]} 22. Qxf6 {[%clk 0:01:27.6]}
22... Re6 {[%clk 0:01:40.5]} 23. Qf3 {[%clk 0:01:27.4]} 23... Rb8 {[%clk
0:01:35.1]} 24. Rd7 {[%clk 0:01:27.2]} 24... f6 {[%clk 0:01:16.2]} 25. Bh3
{[%clk 0:01:12.5]} 25... f5 {[%clk 0:01:04.3]} 26. Bf1 {[%clk 0:00:30.2]} 26...
Kh8 {[%clk 0:00:35.3]} 27. Bc4 {[%clk 0:00:29.8]} 27... Re4 {[%clk 0:00:28.4]}
28. Rcd1 {[%clk 0:00:20.6]} 28... Bg7 {[%clk 0:00:24.2]} 29. Kg2 {[%clk
0:00:16.7]} 29... Rbe8 {[%clk 0:00:22.2]} 30. Rf7 {[%clk 0:00:16]} 30... R4e7
{[%clk 0:00:18.4]} 31. Rd7 {[%clk 0:00:15.1]} 31... Rxd7 {[%clk 0:00:18.1]} 32.
Rxd7 {[%clk 0:00:16]} 32... Rd8 {[%clk 0:00:09.5]} 33. Re7 {[%clk 0:00:15.7]}
33... Qb8 {[%clk 0:00:07.8]} 34. Qe3 {[%clk 0:00:14.6]} 34... Rf8 {[%clk
0:00:02.8]} 35. Qxc5 {[%clk 0:00:12.3]} 35... Qd8 {[%clk 0:00:01.7]} 36. Qa7
{[%clk 0:00:10.3]} 1-0

[Event "*** Titled Tuesday Blitz"]
[Site "Chess.com"]
[Date "2020.10.27"]
[Round "4"]
[White "AndreyNeves"]
[Black "TomasKapitanchuk"]
[Result "1-0"]
[WhiteElo "2272"]
[BlackElo "2429"]
[TimeControl "180+1"]
[EndTime "10:39:00 PDT"]
[Termination "AndreyNeves won by checkmate"]

1. d4 {[%clk 0:03:00.9]} 1... Nf6 {[%clk 0:02:59]} 2. c4 {[%clk 0:03:00.4]} 2...
e6 {[%clk 0:02:58.7]} 3. g3 {[%clk 0:03:00]} 3... c5 {[%clk 0:02:57.6]} 4. d5
{[%clk 0:02:59]} 4... exd5 {[%clk 0:02:58.5]} 5. cxd5 {[%clk 0:02:58.9]} 5... d6
{[%clk 0:02:59.4]} 6. Nc3 {[%clk 0:02:58.9]} 6... g6 {[%clk 0:03:00.3]} 7. Bg2
{[%clk 0:02:58.9]} 7... Bg7 {[%clk 0:03:00.8]} 8. Nf3 {[%clk 0:02:59]} 8... O-O
{[%clk 0:03:01.4]} 9. O-O {[%clk 0:02:59.1]} 9... Re8 {[%clk 0:03:02.1]} 10. Nd2
{[%clk 0:02:56.5]} 10... a6 {[%clk 0:03:01.1]} 11. a4 {[%clk 0:02:55.8]} 11...
Nbd7 {[%clk 0:03:01.7]} 12. Nc4 {[%clk 0:02:55.4]} 12... Ne5 {[%clk 0:03:01.3]}
13. Ne3 {[%clk 0:02:54.6]} 13... Neg4 {[%clk 0:03:00.4]} 14. Nc4 {[%clk
0:02:53.3]} 14... Ne5 {[%clk 0:02:53.6]} 15. Na3 {[%clk 0:02:52.7]} 15... Nh5
{[%clk 0:02:51.2]} 16. h3 {[%clk 0:02:48.4]} 16... f5 {[%clk 0:02:50.8]} 17. f4
{[%clk 0:02:47.6]} 17... Nxg3 {[%clk 0:02:42.4]} 18. fxe5 {[%clk 0:02:47.2]}
18... Nxf1 {[%clk 0:02:42.9]} 19. Qxf1 {[%clk 0:02:41.9]} 19... Bxe5 {[%clk
0:02:42.4]} 20. Bf4 {[%clk 0:02:41.5]} 20... Qf6 {[%clk 0:02:37.9]} 21. Nc4
{[%clk 0:02:34.8]} 21... Bd4+ {[%clk 0:02:31.9]} 22. e3 {[%clk 0:02:04.8]} 22...
Bxc3 {[%clk 0:02:06.6]} 23. bxc3 {[%clk 0:02:03.5]} 23... g5 {[%clk 0:01:55.9]}
24. Bxd6 {[%clk 0:01:48.3]} 24... b5 {[%clk 0:01:41.3]} 25. axb5 {[%clk
0:01:45.1]} 25... Bd7 {[%clk 0:01:42.2]} 26. Rxa6 {[%clk 0:01:02.8]} 26... Bxb5
{[%clk 0:01:20.4]} 27. Rxa8 {[%clk 0:00:49.4]} 27... Rxa8 {[%clk 0:01:21.3]} 28.
Bxc5 {[%clk 0:00:40]} 28... Qxc3 {[%clk 0:01:10.3]} 29. Qxf5 {[%clk 0:00:32.5]}
29... Qxc4 {[%clk 0:00:28.5]} 30. Qxg5+ {[%clk 0:00:26.3]} 30... Kf7 {[%clk
0:00:26.2]} 31. d6 {[%clk 0:00:18.9]} 31... Ra1+ {[%clk 0:00:20.1]} 32. Kh2
{[%clk 0:00:18.9]} 32... Rd1 {[%clk 0:00:15.1]} 33. Qe7+ {[%clk 0:00:14.8]}
33... Kg6 {[%clk 0:00:15.4]} 34. Be4+ {[%clk 0:00:10.6]} 34... Kh6 {[%clk
0:00:11.7]} 35. Qf8+ {[%clk 0:00:06.2]} 35... Kh5 {[%clk 0:00:06.9]} 36. Qf5+
{[%clk 0:00:05.7]} 36... Kh6 {[%clk 0:00:07.5]} 37. Qxh7+ {[%clk 0:00:05.3]}
37... Kg5 {[%clk 0:00:08.4]} 38. Qf5+ {[%clk 0:00:04.4]} 38... Kh4 {[%clk
0:00:03.3]} 39. Qg4# {[%clk 0:00:04.4]} 1-0

[Event "*** Titled Tuesday Blitz"]
[Site "Chess.com"]
[Date "2020.10.27"]
[Round "4"]
[White "Zkid"]
[Black "AnishOnYoutube"]
[Result "0-1"]
[WhiteElo "2809"]
[BlackElo "2979"]
[TimeControl "180+1"]
[EndTime "10:39:02 PDT"]
[Termination "AnishOnYoutube won by resignation"]

1. e4 {[%clk 0:03:00.9]} 1... c5 {[%clk 0:02:59.6]} 2. Nf3 {[%clk 0:03:00.7]}
2... d6 {[%clk 0:02:59.9]} 3. d4 {[%clk 0:03:00.3]} 3... cxd4 {[%clk 0:03:00.3]}
4. Nxd4 {[%clk 0:03:01.2]} 4... Nf6 {[%clk 0:03:00.8]} 5. f3 {[%clk 0:03:00.9]}
5... Nc6 {[%clk 0:02:54.7]} 6. c4 {[%clk 0:03:00.5]} 6... e5 {[%clk 0:02:19.6]}
7. Nc2 {[%clk 0:02:55.7]} 7... Be6 {[%clk 0:02:18]} 8. Nc3 {[%clk 0:02:52.8]}
8... Be7 {[%clk 0:02:18.5]} 9. Be2 {[%clk 0:02:50.8]} 9... O-O {[%clk
0:02:18.4]} 10. O-O {[%clk 0:02:49.7]} 10... Nd7 {[%clk 0:02:14]} 11. b4 {[%clk
0:02:34.2]} 11... Nxb4 {[%clk 0:02:03]} 12. Nxb4 {[%clk 0:02:30.5]} 12... Qb6+
{[%clk 0:02:03.6]} 13. Kh1 {[%clk 0:02:30.6]} 13... Qxb4 {[%clk 0:02:04]} 14.
Nb5 {[%clk 0:02:19.8]} 14... Bxc4 {[%clk 0:01:52.9]} 15. a4 {[%clk 0:01:48.6]}
15... Bxe2 {[%clk 0:01:13.3]} 16. Qxe2 {[%clk 0:01:48.4]} 16... Qa5 {[%clk
0:01:13.9]} 17. Rd1 {[%clk 0:01:37.5]} 17... Nc5 {[%clk 0:01:10.7]} 18. Nxd6
{[%clk 0:01:35.5]} 18... Bxd6 {[%clk 0:01:06.2]} 19. Rxd6 {[%clk 0:01:35.6]}
19... Nb3 {[%clk 0:00:57.8]} 20. Rb1 {[%clk 0:01:34.6]} 20... Nd4 {[%clk
0:00:53.2]} 21. Qd1 {[%clk 0:01:26.3]} 21... Qc7 {[%clk 0:00:52.7]} 22. Ba3
{[%clk 0:01:19.9]} 22... Rfd8 {[%clk 0:00:48.6]} 23. Rxd8+ {[%clk 0:01:08]}
23... Rxd8 {[%clk 0:00:48.3]} 24. Rc1 {[%clk 0:01:02.3]} 24... Nc6 {[%clk
0:00:43.7]} 25. Qb3 {[%clk 0:00:57.8]} 25... h6 {[%clk 0:00:43.6]} 26. h3 {[%clk
0:00:55.7]} 26... Qd7 {[%clk 0:00:43.4]} 27. Bb2 {[%clk 0:00:44.7]} 27... Kh7
{[%clk 0:00:41]} 28. Rc5 {[%clk 0:00:39.7]} 28... Qd1+ {[%clk 0:00:37.8]} 29.
Qxd1 {[%clk 0:00:39.5]} 29... Rxd1+ {[%clk 0:00:38.7]} 30. Kh2 {[%clk 0:00:40]}
30... f6 {[%clk 0:00:39.1]} 31. Rd5 {[%clk 0:00:27.5]} 31... Rxd5 {[%clk
0:00:32.7]} 32. exd5 {[%clk 0:00:28.4]} 32... Ne7 {[%clk 0:00:16.6]} 33. d6
{[%clk 0:00:27.9]} 33... Nc6 {[%clk 0:00:17.2]} 34. d7 {[%clk 0:00:16]} 34...
Kg6 {[%clk 0:00:17]} 35. Ba3 {[%clk 0:00:15.3]} 35... Kf7 {[%clk 0:00:17.4]} 36.
g4 {[%clk 0:00:15.7]} 36... g6 {[%clk 0:00:16.4]} 37. Kg3 {[%clk 0:00:15.8]}
37... a6 {[%clk 0:00:14.9]} 38. Bc5 {[%clk 0:00:14.2]} 38... b5 {[%clk
0:00:14.8]} 39. axb5 {[%clk 0:00:13.1]} 39... axb5 {[%clk 0:00:15.7]} 40. f4
{[%clk 0:00:13.7]} 40... exf4+ {[%clk 0:00:14.6]} 41. Kxf4 {[%clk 0:00:14.6]}
41... Ke6 {[%clk 0:00:14]} 42. Bf8 {[%clk 0:00:14.6]} 42... Kxd7 {[%clk
0:00:12.3]} 43. Bxh6 {[%clk 0:00:14.6]} 43... b4 {[%clk 0:00:12.6]} 44. Ke4
{[%clk 0:00:14.3]} 44... Ne5 {[%clk 0:00:08.4]} 45. Bg7 {[%clk 0:00:11.2]} 45...
b3 {[%clk 0:00:04.8]} 46. Bxf6 {[%clk 0:00:08.7]} 46... b2 {[%clk 0:00:05.1]}
0-1

[Event "*** Titled Tuesday Blitz"]
[Site "Chess.com"]
[Date "2020.10.27"]
[Round "4"]
[White "Trickov"]
[Black "Ajedrez_con_German"]
[Result "0-1"]
[WhiteElo "2354"]
[BlackElo "2539"]
[TimeControl "180+1"]
[EndTime "10:39:02 PDT"]
[Termination "Ajedrez_con_German won on time"]

1. d4 {[%clk 0:02:58]} 1... d5 {[%clk 0:02:58.3]} 2. Nf3 {[%clk 0:02:57.4]} 2...
c6 {[%clk 0:02:57.9]} 3. c4 {[%clk 0:02:53.5]} 3... Nf6 {[%clk 0:02:57.3]} 4.
Nc3 {[%clk 0:02:53.1]} 4... e6 {[%clk 0:02:55.4]} 5. g3 {[%clk 0:02:52.7]} 5...
Nbd7 {[%clk 0:02:51.8]} 6. Bg2 {[%clk 0:02:45.7]} 6... Be7 {[%clk 0:02:51.5]} 7.
b3 {[%clk 0:02:42.9]} 7... O-O {[%clk 0:02:51.1]} 8. O-O {[%clk 0:02:42.9]} 8...
b6 {[%clk 0:02:50.8]} 9. Qc2 {[%clk 0:02:41.4]} 9... Bb7 {[%clk 0:02:50.8]} 10.
Rd1 {[%clk 0:02:39.5]} 10... Rc8 {[%clk 0:02:34.9]} 11. e4 {[%clk 0:02:38.9]}
11... Bb4 {[%clk 0:02:18.1]} 12. e5 {[%clk 0:02:30]} 12... Ne8 {[%clk
0:02:16.4]} 13. a3 {[%clk 0:02:25.3]} 13... Be7 {[%clk 0:02:13.8]} 14. h4 {[%clk
0:02:14.4]} 14... h6 {[%clk 0:02:04.5]} 15. Bb2 {[%clk 0:02:03.5]} 15... Nc7
{[%clk 0:02:00.5]} 16. Rac1 {[%clk 0:01:44]} 16... c5 {[%clk 0:01:54]} 17. dxc5
{[%clk 0:01:37.8]} 17... Nxc5 {[%clk 0:01:51.6]} 18. Nd4 {[%clk 0:01:18.2]}
18... Qd7 {[%clk 0:01:39.6]} 19. Ndb5 {[%clk 0:01:06.7]} 19... Nxb5 {[%clk
0:01:38.4]} 20. Nxb5 {[%clk 0:01:05.8]} 20... a6 {[%clk 0:01:31.6]} 21. Nd6
{[%clk 0:01:04.8]} 21... Bxd6 {[%clk 0:01:25.9]} 22. exd6 {[%clk 0:01:04.5]}
22... Qxd6 {[%clk 0:01:15.1]} 23. b4 {[%clk 0:00:31.8]} 23... Nd7 {[%clk
0:01:07.3]} 24. Qe2 {[%clk 0:00:30.8]} 24... Rcd8 {[%clk 0:00:39.8]} 25. Qg4
{[%clk 0:00:28.1]} 25... f6 {[%clk 0:00:35.7]} 26. Qg6 {[%clk 0:00:22.5]} 26...
Ne5 {[%clk 0:00:26.1]} 27. Qc2 {[%clk 0:00:19]} 27... Rc8 {[%clk 0:00:17.1]} 28.
Qe2 {[%clk 0:00:16.7]} 28... Rfd8 {[%clk 0:00:12.1]} 29. cxd5 {[%clk 0:00:12.9]}
29... Rxc1 {[%clk 0:00:11.6]} 30. Rxc1 {[%clk 0:00:11.1]} 30... exd5 {[%clk
0:00:11.9]} 31. Bd4 {[%clk 0:00:10.4]} 31... b5 {[%clk 0:00:10.3]} 32. Bc5
{[%clk 0:00:09.4]} 32... Qd7 {[%clk 0:00:10.4]} 33. Rd1 {[%clk 0:00:08.8]} 33...
Nc4 {[%clk 0:00:09.3]} 34. a4 {[%clk 0:00:05.9]} 34... Re8 {[%clk 0:00:08.5]}
35. Qa2 {[%clk 0:00:03.9]} 35... Bc6 {[%clk 0:00:08.2]} 36. axb5 {[%clk
0:00:03]} 36... axb5 {[%clk 0:00:09.1]} 37. Qa6 {[%clk 0:00:02.5]} 37... Qe6
{[%clk 0:00:07.9]} 0-1

[Event "*** Titled Tuesday Blitz"]
[Site "Chess.com"]
[Date "2020.10.27"]
[Round "4"]
[White "Bigfish1995"]
[Black "Titus369"]
[Result "1-0"]
[WhiteElo "3017"]
[BlackElo "2525"]
[TimeControl "180+1"]
[EndTime "10:39:06 PDT"]
[Termination "Bigfish1995 won by resignation"]

1. e4 {[%clk 0:02:37.4]} 1... c5 {[%clk 0:02:56.9]} 2. Nf3 {[%clk 0:02:36.7]}
2... d6 {[%clk 0:02:53.7]} 3. b4 {[%clk 0:02:34.5]} 3... cxb4 {[%clk 0:02:51.5]}
4. a3 {[%clk 0:02:34.5]} 4... bxa3 {[%clk 0:02:48]} 5. Nxa3 {[%clk 0:02:33.3]}
5... Nc6 {[%clk 0:02:47.3]} 6. Bb2 {[%clk 0:02:32.8]} 6... Nf6 {[%clk
0:02:46.4]} 7. e5 {[%clk 0:02:29.7]} 7... dxe5 {[%clk 0:02:44.5]} 8. Nxe5 {[%clk
0:02:29.8]} 8... e6 {[%clk 0:02:41.4]} 9. Nxc6 {[%clk 0:02:23.4]} 9... bxc6
{[%clk 0:02:42.3]} 10. Nc4 {[%clk 0:02:23.3]} 10... Be7 {[%clk 0:02:41.1]} 11.
Qf3 {[%clk 0:02:22.5]} 11... Qd5 {[%clk 0:02:36.6]} 12. Qf4 {[%clk 0:02:10.8]}
12... c5 {[%clk 0:02:22.7]} 13. Be2 {[%clk 0:02:08]} 13... Bb7 {[%clk
0:02:12.7]} 14. Bf3 {[%clk 0:01:55.6]} 14... Qd7 {[%clk 0:02:11.5]} 15. Bxf6
{[%clk 0:01:19.8]} 15... gxf6 {[%clk 0:02:06.4]} 16. Ra3 {[%clk 0:01:19.2]}
16... Bxf3 {[%clk 0:01:48.9]} 17. Rxf3 {[%clk 0:01:14.9]} 17... Qd4 {[%clk
0:01:41.3]} 18. Qc7 {[%clk 0:00:35.2]} 18... Qa1+ {[%clk 0:01:27.7]} 19. Ke2
{[%clk 0:00:34.7]} 19... Qa6 {[%clk 0:01:28.6]} 20. d3 {[%clk 0:00:28.2]} 20...
e5 {[%clk 0:01:21]} 21. Rb1 {[%clk 0:00:26.5]} 21... Rc8 {[%clk 0:01:15.4]} 22.
Rxf6 {[%clk 0:00:18.9]} 22... Rxc7 {[%clk 0:01:08]} 23. Rxa6 {[%clk 0:00:18.9]}
23... O-O {[%clk 0:01:02.9]} 24. Nxe5 {[%clk 0:00:19.2]} 24... Re8 {[%clk
0:01:03.1]} 25. Nc4 {[%clk 0:00:19.5]} 25... Bf8+ {[%clk 0:01:02.7]} 26. Kf1
{[%clk 0:00:19.7]} 26... Ree7 {[%clk 0:00:56.2]} 27. g3 {[%clk 0:00:19.7]} 27...
Rb7 {[%clk 0:00:56]} 28. Rba1 {[%clk 0:00:19.1]} 28... Red7 {[%clk 0:00:52.5]}
29. R1a2 {[%clk 0:00:18.5]} 29... Bg7 {[%clk 0:00:48.7]} 30. Kg2 {[%clk
0:00:18.6]} 30... Rbc7 {[%clk 0:00:43.4]} 31. Nd6 {[%clk 0:00:17.7]} 31... Bd4
{[%clk 0:00:36.8]} 32. Nb5 {[%clk 0:00:17.5]} 32... Rb7 {[%clk 0:00:36.2]} 33.
Rxa7 {[%clk 0:00:17.8]} 33... Rxa7 {[%clk 0:00:30.3]} 34. Rxa7 {[%clk
0:00:18.7]} 34... Rd8 {[%clk 0:00:30.5]} 35. Rc7 {[%clk 0:00:16.7]} 35... Kf8
{[%clk 0:00:28.2]} 36. Kf3 {[%clk 0:00:14.5]} 36... Rb8 {[%clk 0:00:26.1]} 37.
Nxd4 {[%clk 0:00:13.5]} 37... cxd4 {[%clk 0:00:27]} 38. Rc4 {[%clk 0:00:13.3]}
38... Rd8 {[%clk 0:00:27.5]} 39. h4 {[%clk 0:00:11.5]} 39... Kg7 {[%clk
0:00:27.2]} 40. Ke4 {[%clk 0:00:11.6]} 40... Re8+ {[%clk 0:00:27.2]} 41. Kxd4
{[%clk 0:00:11.3]} 41... Re2 {[%clk 0:00:27.2]} 42. f3 {[%clk 0:00:11.7]} 42...
Rg2 {[%clk 0:00:25.6]} 43. Rc5 {[%clk 0:00:12.1]} 43... Rxg3 {[%clk 0:00:20.7]}
44. Rg5+ {[%clk 0:00:11.7]} 44... Rxg5 {[%clk 0:00:20.7]} 45. hxg5 {[%clk
0:00:12.6]} 45... Kg6 {[%clk 0:00:21.6]} 46. f4 {[%clk 0:00:12.7]} 46... Kf5
{[%clk 0:00:21.9]} 47. Ke3 {[%clk 0:00:12.8]} 47... f6 {[%clk 0:00:22.3]} 48.
gxf6 {[%clk 0:00:12.5]} 48... Kxf6 {[%clk 0:00:23.2]} 49. Kf3 {[%clk 0:00:12.4]}
49... Ke6 {[%clk 0:00:24.1]} 50. c4 {[%clk 0:00:12.5]} 50... Kd6 {[%clk
0:00:24.1]} 51. d4 {[%clk 0:00:12.8]} 1-0

[Event "*** Titled Tuesday Blitz"]
[Site "Chess.com"]
[Date "2020.10.27"]
[Round "4"]
[White "Fy_Rakotomaharo"]
[Black "Snegokhod"]
[Result "0-1"]
[WhiteElo "2633"]
[BlackElo "2443"]
[TimeControl "180+1"]
[EndTime "10:39:07 PDT"]
[Termination "Snegokhod won on time"]

1. e4 {[%clk 0:02:52.2]} 1... c5 {[%clk 0:02:59.4]} 2. Nf3 {[%clk 0:02:51.3]}
2... d6 {[%clk 0:02:59.5]} 3. Bb5+ {[%clk 0:02:51.3]} 3... Bd7 {[%clk
0:02:58.8]} 4. Bxd7+ {[%clk 0:02:51.5]} 4... Qxd7 {[%clk 0:02:59.1]} 5. O-O
{[%clk 0:02:51.2]} 5... Nc6 {[%clk 0:02:59.4]} 6. c3 {[%clk 0:02:50.9]} 6... Nf6
{[%clk 0:02:58.9]} 7. Qe2 {[%clk 0:02:48.9]} 7... e5 {[%clk 0:02:58.1]} 8. Rd1
{[%clk 0:02:35.7]} 8... Be7 {[%clk 0:02:57.6]} 9. d4 {[%clk 0:02:36.1]} 9...
cxd4 {[%clk 0:02:52.6]} 10. cxd4 {[%clk 0:02:37]} 10... exd4 {[%clk 0:02:52.7]}
11. Nxd4 {[%clk 0:02:37.4]} 11... O-O {[%clk 0:02:50.6]} 12. Nc3 {[%clk
0:02:36]} 12... Rfe8 {[%clk 0:02:50]} 13. Bf4 {[%clk 0:02:31.1]} 13... Bf8
{[%clk 0:02:45.2]} 14. Ndb5 {[%clk 0:02:16.3]} 14... Re6 {[%clk 0:02:11.9]} 15.
Qc4 {[%clk 0:02:01.4]} 15... a6 {[%clk 0:02:05.9]} 16. Nd4 {[%clk 0:01:59.4]}
16... Nxd4 {[%clk 0:01:58.9]} 17. Rxd4 {[%clk 0:01:57]} 17... Qc6 {[%clk
0:01:28.7]} 18. Rad1 {[%clk 0:01:31]} 18... Rc8 {[%clk 0:01:04]} 19. Qd3 {[%clk
0:01:16.5]} 19... Rce8 {[%clk 0:00:45.2]} 20. f3 {[%clk 0:01:09.7]} 20... Qb6
{[%clk 0:00:41.3]} 21. Be3 {[%clk 0:00:53.2]} 21... Qxb2 {[%clk 0:00:38.9]} 22.
Rb1 {[%clk 0:00:53.1]} 22... Qa3 {[%clk 0:00:38.1]} 23. Ra4 {[%clk 0:00:52.7]}
23... Qxa4 {[%clk 0:00:23]} 24. Nxa4 {[%clk 0:00:52.1]} 24... d5 {[%clk
0:00:22.9]} 25. e5 {[%clk 0:00:39]} 25... Rxe5 {[%clk 0:00:17.5]} 26. Bd4 {[%clk
0:00:39.3]} 26... R5e6 {[%clk 0:00:11.7]} 27. Nc3 {[%clk 0:00:36]} 27... b5
{[%clk 0:00:10.2]} 28. Bxf6 {[%clk 0:00:17.4]} 28... Rxf6 {[%clk 0:00:10.1]} 29.
Qxd5 {[%clk 0:00:17.2]} 29... Rd6 {[%clk 0:00:08.9]} 30. Qb7 {[%clk 0:00:16.6]}
30... Rd3 {[%clk 0:00:05.1]} 31. Ne4 {[%clk 0:00:15.5]} 31... f5 {[%clk
0:00:04.3]} 32. Ng3 {[%clk 0:00:10.1]} 32... Rd2 {[%clk 0:00:03.9]} 33. h4
{[%clk 0:00:03.9]} 33... Bc5+ {[%clk 0:00:03.7]} 34. Kh1 {[%clk 0:00:03.9]}
34... g6 {[%clk 0:00:02.5]} 35. Qc6 {[%clk 0:00:03.6]} 35... Re5 {[%clk
0:00:01.6]} 36. f4 {[%clk 0:00:03.6]} 36... Red5 {[%clk 0:00:01.3]} 37. Qe6+
{[%clk 0:00:04.1]} 37... Kg7 {[%clk 0:00:01.2]} 38. Re1 {[%clk 0:00:03.3]} 38...
Kh6 {[%clk 0:00:01.2]} 0-1

[Event "*** Titled Tuesday Blitz"]
[Site "Chess.com"]
[Date "2020.10.27"]
[Round "4"]
[White "SARGISMV"]
[Black "Harsha_Bharathakoti"]
[Result "0-1"]
[WhiteElo "2521"]
[BlackElo "2819"]
[TimeControl "180+1"]
[EndTime "10:39:09 PDT"]
[Termination "Harsha_Bharathakoti won on time"]

1. d4 {[%clk 0:03:00.9]} 1... d5 {[%clk 0:02:56.9]} 2. c4 {[%clk 0:03:00.9]}
2... e6 {[%clk 0:02:57]} 3. Nf3 {[%clk 0:03:00.7]} 3... Nf6 {[%clk 0:02:56.7]}
4. Nc3 {[%clk 0:03:00.4]} 4... c6 {[%clk 0:02:55.5]} 5. e3 {[%clk 0:02:59.1]}
5... Nbd7 {[%clk 0:02:55]} 6. Qc2 {[%clk 0:02:59.3]} 6... Bd6 {[%clk 0:02:53.2]}
7. Bd3 {[%clk 0:02:59.7]} 7... dxc4 {[%clk 0:02:53.6]} 8. Bxc4 {[%clk
0:02:59.7]} 8... b5 {[%clk 0:02:54]} 9. Be2 {[%clk 0:02:59.3]} 9... Bb7 {[%clk
0:02:54.6]} 10. O-O {[%clk 0:02:59.9]} 10... O-O {[%clk 0:02:55.2]} 11. Rd1
{[%clk 0:03:00.4]} 11... Qb8 {[%clk 0:02:55.8]} 12. e4 {[%clk 0:02:59.8]} 12...
e5 {[%clk 0:02:54.6]} 13. Bg5 {[%clk 0:02:48]} 13... Re8 {[%clk 0:02:39.9]} 14.
dxe5 {[%clk 0:02:25.8]} 14... Nxe5 {[%clk 0:02:39.2]} 15. Bxf6 {[%clk
0:02:24.3]} 15... gxf6 {[%clk 0:02:39.2]} 16. Nd4 {[%clk 0:02:15]} 16... a6
{[%clk 0:02:00.9]} 17. Nf5 {[%clk 0:02:04.8]} 17... Bf8 {[%clk 0:02:00.5]} 18.
a3 {[%clk 0:01:39.1]} 18... Bc8 {[%clk 0:01:57.5]} 19. Bf1 {[%clk 0:01:15.2]}
19... Bxf5 {[%clk 0:01:17.8]} 20. exf5 {[%clk 0:01:16.1]} 20... Ng4 {[%clk
0:01:18.5]} 21. g3 {[%clk 0:01:11.8]} 21... Qb6 {[%clk 0:01:19]} 22. Rd2 {[%clk
0:01:01.9]} 22... Bc5 {[%clk 0:00:18.3]} 23. Ne4 {[%clk 0:00:51.4]} 23... Rxe4
{[%clk 0:00:17.9]} 24. Qxe4 {[%clk 0:00:51]} 24... Nxf2 {[%clk 0:00:18.6]} 25.
Rxf2 {[%clk 0:00:40]} 25... Bxf2+ {[%clk 0:00:19.5]} 26. Kh1 {[%clk 0:00:35]}
26... Rd8 {[%clk 0:00:20.4]} 27. Bg2 {[%clk 0:00:33.8]} 27... Bd4 {[%clk
0:00:15.8]} 28. Qxc6 {[%clk 0:00:16.7]} 28... Qxc6 {[%clk 0:00:16.7]} 29. Bxc6
{[%clk 0:00:16.8]} 29... Bxb2 {[%clk 0:00:17.4]} 30. Ra2 {[%clk 0:00:17.2]}
30... Rd1+ {[%clk 0:00:13.7]} 31. Kg2 {[%clk 0:00:16.8]} 31... Bc3 {[%clk
0:00:13.7]} 32. Bb7 {[%clk 0:00:16]} 32... a5 {[%clk 0:00:12]} 33. Ba6 {[%clk
0:00:13.8]} 33... b4 {[%clk 0:00:12.1]} 34. axb4 {[%clk 0:00:14.7]} 34... Bxb4
{[%clk 0:00:10]} 35. Rc2 {[%clk 0:00:11.2]} 35... Rd7 {[%clk 0:00:06.6]} 36.
Rc8+ {[%clk 0:00:09.5]} 36... Kg7 {[%clk 0:00:06.7]} 37. Ra8 {[%clk 0:00:07.3]}
37... a4 {[%clk 0:00:04.1]} 38. Bb5 {[%clk 0:00:07.4]} 38... Rd2+ {[%clk
0:00:04.8]} 39. Kf3 {[%clk 0:00:05.1]} 39... a3 {[%clk 0:00:05.7]} 40. h4 {[%clk
0:00:04.6]} 40... Rd5 {[%clk 0:00:04.1]} 0-1